[Event "Titled Tuesday Blitz August 22 Early 2023"]
[White "Borgaonkar Akshay"]
[Black "Baches Garcia, Guillermo"]
[WhiteFideId "25639110"]
[BlackFideId "2209764"]
[WhiteElo "2596"]
[BlackElo "2431"]
[Result "1/2-1/2"]
[Round "6"]
[TimeControl "180+1"]
[Date "2023.08.22"]
[WhiteClock "0:01:07"]
[BlackClock "0:00:13"]
[Board "92"]

1. Nf3 {[%clk 0:03:00]}  d5 {[%clk 0:02:59]} 2. g3 {[%clk 0:02:58]}  g6 {[%clk 0:02:59]} 3. Bg2 {[%clk 0:02:59]}  Bg7 {[%clk 0:02:59]} 4. c4 {[%clk 0:02:59]}  dxc4 {[%clk 0:02:56]} 5. Qa4+ {[%clk 0:02:59]}  Nc6 {[%clk 0:02:36]} 6. Qxc4 {[%clk 0:02:47]}  e5 {[%clk 0:02:35]} 7. Ng5 {[%clk 0:02:40]}  Qd7 {[%clk 0:02:20]} 8. Nxf7 {[%clk 0:02:40]}  Qxf7 {[%clk 0:02:15]} 9. Bxc6+ {[%clk 0:02:39]}  Kf8 {[%clk 0:02:10]} 10. Bd5 {[%clk 0:02:40]}  Qd7 {[%clk 0:02:05]} 11. b3 {[%clk 0:02:36]}  Nf6 {[%clk 0:02:00]} 12. Ba3+ {[%clk 0:02:33]}  Ke8 {[%clk 0:02:00]} 13. Nc3 {[%clk 0:02:34]}  Nxd5 {[%clk 0:01:58]} 14. Nxd5 {[%clk 0:02:35]}  c6 {[%clk 0:01:48]} 15. Ne3 {[%clk 0:02:35]}  Qd4 {[%clk 0:01:38]} 16. Rc1 {[%clk 0:02:21]}  Bh3 {[%clk 0:01:34]} 17. Bc5 {[%clk 0:02:09]}  Qxc4 {[%clk 0:01:27]} 18. Nxc4 {[%clk 0:02:10]}  Kd7 {[%clk 0:01:26]} 19. f3 {[%clk 0:02:08]}  h5 {[%clk 0:01:18]} 20. Kf2 {[%clk 0:02:08]}  b6 {[%clk 0:01:14]} 21. Ba3 {[%clk 0:02:06]}  e4 {[%clk 0:01:09]} 22. d3 {[%clk 0:01:59]}  b5 {[%clk 0:00:53]} 23. Na5 {[%clk 0:01:44]}  exf3 {[%clk 0:00:53]} 24. exf3 {[%clk 0:01:39]}  Bd4+ {[%clk 0:00:50]} 25. Ke2 {[%clk 0:01:39]}  Rhe8+ {[%clk 0:00:45]} 26. Kd1 {[%clk 0:01:34]}  Bg2 {[%clk 0:00:37]} 27. Re1 {[%clk 0:01:34]}  Rxe1+ {[%clk 0:00:37]} 28. Kxe1 {[%clk 0:01:34]}  Re8+ {[%clk 0:00:37]} 29. Kd1 {[%clk 0:01:32]}  Bxf3+ {[%clk 0:00:35]} 30. Kc2 {[%clk 0:01:32]}  Re2+ {[%clk 0:00:33]} 31. Kb1 {[%clk 0:01:33]}  Rxh2 {[%clk 0:00:32]} 32. Nb7 {[%clk 0:01:04]}  g5 {[%clk 0:00:27]} 33. Nc5+ {[%clk 0:01:04]}  Bxc5 {[%clk 0:00:25]} 34. Bxc5 {[%clk 0:01:04]}  h4 {[%clk 0:00:23]} 35. gxh4 {[%clk 0:01:03]}  gxh4 {[%clk 0:00:23]} 36. Bxa7 {[%clk 0:01:04]}  h3 {[%clk 0:00:23]} 37. Bb8 {[%clk 0:01:02]}  Re2 {[%clk 0:00:18]} 38. Rc2 {[%clk 0:01:01]}  h2 {[%clk 0:00:11]} 39. Bxh2 {[%clk 0:01:00]}  Rxc2 {[%clk 0:00:10]} 40. Kxc2 {[%clk 0:01:01]}  Kc8 {[%clk 0:00:10]} 41. Bg1 {[%clk 0:01:00]}  Kb7 {[%clk 0:00:10]} 42. Bc5 {[%clk 0:01:00]}  Ka6 {[%clk 0:00:10]} 43. Kc3 {[%clk 0:00:59]}  Bd5 {[%clk 0:00:11]} 44. Kd4 {[%clk 0:01:00]}  Kb7 {[%clk 0:00:11]} 45. Ke5 {[%clk 0:01:00]}  Bg8 {[%clk 0:00:11]} 46. Kd6 {[%clk 0:01:00]}  Bf7 {[%clk 0:00:11]} 47. Ke7 {[%clk 0:01:00]}  Bd5 {[%clk 0:00:11]} 48. Kf6 {[%clk 0:01:00]}  Bg2 {[%clk 0:00:11]} 49. Ke5 {[%clk 0:01:01]}  Bd5 {[%clk 0:00:11]} 50. Kd4 {[%clk 0:01:02]}  Bg2 {[%clk 0:00:11]} 51. Kc3 {[%clk 0:01:02]}  Bd5 {[%clk 0:00:12]} 52. Bd4 {[%clk 0:01:03]}  Bg2 {[%clk 0:00:11]} 53. Bg7 {[%clk 0:01:03]}  Bd5 {[%clk 0:00:11]} 54. Kb4 {[%clk 0:01:04]}  Bg2 {[%clk 0:00:11]} 55. Kc5 {[%clk 0:01:04]}  Bf3 {[%clk 0:00:11]} 56. Bh6 {[%clk 0:01:04]}  Bg2 {[%clk 0:00:10]} 57. Kd4 {[%clk 0:01:03]}  Bf3 {[%clk 0:00:10]} 58. Bf8 {[%clk 0:01:04]}  Bg2 {[%clk 0:00:10]} 59. Bc5 {[%clk 0:00:58]}  Bh1 {[%clk 0:00:10]} 60. Ke3 {[%clk 0:00:58]}  Bg2 {[%clk 0:00:10]} 61. Kf2 {[%clk 0:00:59]}  Bd5 {[%clk 0:00:10]} 62. Ke1 {[%clk 0:00:58]}  Bh1 {[%clk 0:00:10]} 63. Kd2 {[%clk 0:00:59]}  Bd5 {[%clk 0:00:11]} 64. Kc3 {[%clk 0:00:59]}  Bg2 {[%clk 0:00:11]} 65. Kb4 {[%clk 0:01:00]}  Bd5 {[%clk 0:00:11]} 66. Bd4 {[%clk 0:01:00]}  Bg2 {[%clk 0:00:11]} 67. Be5 {[%clk 0:00:59]}  Bf3 {[%clk 0:00:11]} 68. Kc5 {[%clk 0:01:00]}  Bg2 {[%clk 0:00:11]} 69. Kd4 {[%clk 0:01:00]}  Bf3 {[%clk 0:00:11]} 70. Bf4 {[%clk 0:01:01]}  Bg2 {[%clk 0:00:11]} 71. Be3 {[%clk 0:01:01]}  Bf3 {[%clk 0:00:11]} 72. Kc3 {[%clk 0:01:01]}  Bg2 {[%clk 0:00:12]} 73. Kd2 {[%clk 0:01:02]}  Bf3 {[%clk 0:00:12]} 74. Ke1 {[%clk 0:01:02]}  Bd5 {[%clk 0:00:12]} 75. Kf2 {[%clk 0:01:02]}  Bh1 {[%clk 0:00:12]} 76. Bc5 {[%clk 0:01:02]}  Bd5 {[%clk 0:00:12]} 77. Ke3 {[%clk 0:01:03]}  Be6 {[%clk 0:00:12]} 78. Kd2 {[%clk 0:01:03]}  Bd5 {[%clk 0:00:12]} 79. Kc3 {[%clk 0:01:04]}  Bf3 {[%clk 0:00:12]} 80. Kb4 {[%clk 0:01:04]}  Bd5 {[%clk 0:00:13]} 81. Ka3 {[%clk 0:01:05]}  Bf3 {[%clk 0:00:13]} 82. Kb2 {[%clk 0:01:06]}  Bd5 {[%clk 0:00:13]} 83. Kc1 {[%clk 0:01:07]}  Bf3 {[%clk 0:00:13]} 84. Kd2 {[%clk 0:01:07]}  Bd5 {[%clk 0:00:13]} 1/2-1/2


[Site "https://www.chess.com"]

[Event "Titled Tuesday Blitz August 22 Early 2023"]
[White "Llanos, Guillermo"]
[Black "Ahmad, Khagan"]
[WhiteFideId "100358"]
[BlackFideId "13431552"]
[WhiteElo "2439"]
[BlackElo "2596"]
[Result "0-1"]
[Round "6"]
[TimeControl "180+1"]
[Date "2023.08.22"]
[WhiteClock "0:00:07"]
[BlackClock "0:00:15"]
[Board "93"]

1. c4 {[%clk 0:02:59]}  Nf6 {[%clk 0:02:59]} 2. Nc3 {[%clk 0:02:59]}  g6 {[%clk 0:02:58]} 3. g3 {[%clk 0:02:58]}  d5 {[%clk 0:02:58]} 4. cxd5 {[%clk 0:02:57]}  Nxd5 {[%clk 0:02:59]} 5. Bg2 {[%clk 0:02:57]}  Nxc3 {[%clk 0:03:00]} 6. bxc3 {[%clk 0:02:57]}  Bg7 {[%clk 0:03:00]} 7. Nf3 {[%clk 0:02:56]}  O-O {[%clk 0:02:59]} 8. O-O {[%clk 0:02:57]}  c5 {[%clk 0:02:51]} 9. Rb1 {[%clk 0:02:55]}  Nc6 {[%clk 0:02:50]} 10. c4 {[%clk 0:02:47]}  b6 {[%clk 0:02:22]} 11. d3 {[%clk 0:02:47]}  Bb7 {[%clk 0:02:20]} 12. Bd2 {[%clk 0:02:36]}  Qd7 {[%clk 0:02:19]} 13. Qc1 {[%clk 0:02:30]}  Nd4 {[%clk 0:02:11]} 14. Nxd4 {[%clk 0:02:29]}  Bxg2 {[%clk 0:02:11]} 15. Kxg2 {[%clk 0:02:24]}  Bxd4 {[%clk 0:02:11]} 16. Qc2 {[%clk 0:02:21]}  Qc6+ {[%clk 0:02:08]} 17. Kg1 {[%clk 0:02:17]}  f5 {[%clk 0:02:05]} 18. a4 {[%clk 0:02:11]}  a5 {[%clk 0:01:47]} 19. Rb5 {[%clk 0:02:07]}  f4 {[%clk 0:01:38]} 20. Bxf4 {[%clk 0:01:57]}  e5 {[%clk 0:01:37]} 21. Bh6 {[%clk 0:01:45]}  Rxf2 {[%clk 0:01:08]} 22. Rxf2 {[%clk 0:01:44]}  Bxf2+ {[%clk 0:01:09]} 23. Kxf2 {[%clk 0:01:44]}  Qh1 {[%clk 0:01:08]} 24. Qc1 {[%clk 0:01:31]}  Rf8+ {[%clk 0:01:02]} 25. Bxf8 {[%clk 0:01:30]}  Qxc1 {[%clk 0:01:00]} 26. Bd6 {[%clk 0:01:25]}  Qh1 {[%clk 0:00:39]} 27. h4 {[%clk 0:01:13]}  Qh2+ {[%clk 0:00:33]} 28. Kf3 {[%clk 0:01:13]}  e4+ {[%clk 0:00:31]} 29. dxe4 {[%clk 0:01:12]}  Qh1+ {[%clk 0:00:30]} 30. Kf2 {[%clk 0:01:10]}  Qxe4 {[%clk 0:00:27]} 31. Rxb6 {[%clk 0:01:09]}  Qxc4 {[%clk 0:00:26]} 32. Rb8+ {[%clk 0:00:56]}  Kf7 {[%clk 0:00:25]} 33. Rb7+ {[%clk 0:00:56]}  Ke6 {[%clk 0:00:25]} 34. Bf4 {[%clk 0:00:56]}  Qxa4 {[%clk 0:00:24]} 35. Rxh7 {[%clk 0:00:56]}  Qd4+ {[%clk 0:00:23]} 36. e3 {[%clk 0:00:54]}  Qd2+ {[%clk 0:00:22]} 37. Kf3 {[%clk 0:00:53]}  Qd1+ {[%clk 0:00:22]} 38. Kf2 {[%clk 0:00:51]}  a4 {[%clk 0:00:22]} 39. Ra7 {[%clk 0:00:48]}  Qd2+ {[%clk 0:00:21]} 40. Kf3 {[%clk 0:00:46]}  Qd1+ {[%clk 0:00:22]} 41. Kf2 {[%clk 0:00:46]}  Kf5 {[%clk 0:00:22]} 42. Rf7+ {[%clk 0:00:41]}  Kg4 {[%clk 0:00:22]} 43. Rf6 {[%clk 0:00:39]}  Qd2+ {[%clk 0:00:19]} 44. Kf1 {[%clk 0:00:37]}  a3 {[%clk 0:00:17]} 45. e4 {[%clk 0:00:32]}  Qd1+ {[%clk 0:00:15]} 46. Kf2 {[%clk 0:00:32]}  a2 {[%clk 0:00:14]} 47. Rxg6+ {[%clk 0:00:31]}  Kh3 {[%clk 0:00:14]} 48. Be5 {[%clk 0:00:30]}  Qd2+ {[%clk 0:00:13]} 49. Kf3 {[%clk 0:00:29]}  Qd3+ {[%clk 0:00:13]} 50. Kf4 {[%clk 0:00:29]}  Qf1+ {[%clk 0:00:14]} 51. Kg5 {[%clk 0:00:28]}  a1=Q {[%clk 0:00:13]} 52. Bxa1 {[%clk 0:00:27]}  Qxa1 {[%clk 0:00:14]} 53. Kh6 {[%clk 0:00:25]}  c4 {[%clk 0:00:13]} 54. h5 {[%clk 0:00:23]}  c3 {[%clk 0:00:14]} 55. Rc6 {[%clk 0:00:22]}  Qc1+ {[%clk 0:00:14]} 56. Kg7 {[%clk 0:00:20]}  Qg5+ {[%clk 0:00:13]} 57. Kh7 {[%clk 0:00:19]}  Qxh5+ {[%clk 0:00:13]} 58. Rh6 {[%clk 0:00:19]}  Qxh6+ {[%clk 0:00:14]} 59. Kxh6 {[%clk 0:00:19]}  c2 {[%clk 0:00:15]} 60. e5 {[%clk 0:00:18]}  c1=Q+ {[%clk 0:00:15]} 61. Kg6 {[%clk 0:00:17]}  Kxg3 {[%clk 0:00:15]} 62. Kf6 {[%clk 0:00:15]}  Qf4+ {[%clk 0:00:15]} 63. Ke6 {[%clk 0:00:15]}  Kg4 {[%clk 0:00:15]} 64. Kd6 {[%clk 0:00:07]}  Kf5 {[%clk 0:00:15]} 0-1


[Site "https://www.chess.com"]

[Event "Titled Tuesday Blitz August 22 Early 2023"]
[White "Biregina"]
[Black "Ezat, Mohamed"]
[BlackFideId "10600906"]
[WhiteElo "2413"]
[BlackElo "2584"]
[Result "0-1"]
[Round "6"]
[TimeControl "180+1"]
[Date "2023.08.22"]
[WhiteClock "0:00:01"]
[BlackClock "0:01:39"]
[Board "95"]

1. d4 {[%clk 0:03:00]}  Nf6 {[%clk 0:02:59]} 2. Nf3 {[%clk 0:03:00]}  g6 {[%clk 0:02:59]} 3. e3 {[%clk 0:02:59]}  Bg7 {[%clk 0:02:59]} 4. Nbd2 {[%clk 0:02:57]}  O-O {[%clk 0:02:59]} 5. b3 {[%clk 0:02:57]}  d6 {[%clk 0:02:59]} 6. Bb2 {[%clk 0:02:57]}  e5 {[%clk 0:03:00]} 7. dxe5 {[%clk 0:02:56]}  Nfd7 {[%clk 0:03:00]} 8. Be2 {[%clk 0:02:40]}  Nc6 {[%clk 0:02:58]} 9. O-O {[%clk 0:02:28]}  a5 {[%clk 0:02:56]} 10. Bb5 {[%clk 0:02:25]}  Ndxe5 {[%clk 0:02:49]} 11. Bxc6 {[%clk 0:02:11]}  bxc6 {[%clk 0:02:47]} 12. Nxe5 {[%clk 0:02:09]}  dxe5 {[%clk 0:02:47]} 13. Nc4 {[%clk 0:02:05]}  Ba6 {[%clk 0:02:46]} 14. Qxd8 {[%clk 0:01:53]}  Rfxd8 {[%clk 0:02:46]} 15. Rfd1 {[%clk 0:01:50]}  Bxc4 {[%clk 0:02:45]} 16. bxc4 {[%clk 0:01:50]}  e4 {[%clk 0:02:40]} 17. Bxg7 {[%clk 0:01:31]}  Kxg7 {[%clk 0:02:40]} 18. Kf1 {[%clk 0:01:28]}  Kf6 {[%clk 0:02:38]} 19. Ke1 {[%clk 0:01:19]}  Ke6 {[%clk 0:02:33]} 20. Rxd8 {[%clk 0:01:18]}  Rxd8 {[%clk 0:02:32]} 21. Rb1 {[%clk 0:01:17]}  Kd6 {[%clk 0:02:31]} 22. Rb7 {[%clk 0:00:59]}  Ra8 {[%clk 0:02:24]} 23. Kd2 {[%clk 0:00:46]}  c5 {[%clk 0:02:24]} 24. a4 {[%clk 0:00:34]}  Kc6 {[%clk 0:02:23]} 25. Rb5 {[%clk 0:00:34]}  f5 {[%clk 0:02:15]} 26. h4 {[%clk 0:00:22]}  h6 {[%clk 0:02:15]} 27. Ke2 {[%clk 0:00:19]}  g5 {[%clk 0:02:09]} 28. hxg5 {[%clk 0:00:19]}  hxg5 {[%clk 0:02:10]} 29. f3 {[%clk 0:00:20]}  exf3+ {[%clk 0:02:06]} 30. Kxf3 {[%clk 0:00:19]}  Kd6 {[%clk 0:01:59]} 31. g4 {[%clk 0:00:09]}  fxg4+ {[%clk 0:01:54]} 32. Kxg4 {[%clk 0:00:10]}  Re8 {[%clk 0:01:53]} 33. Kf3 {[%clk 0:00:03]}  g4+ {[%clk 0:01:53]} 34. Kf2 {[%clk 0:00:01]}  g3+ {[%clk 0:01:53]} 35. Kxg3 {[%clk 0:00:01]}  Rxe3+ {[%clk 0:01:52]} 36. Kf4 {[%clk 0:00:02]}  Rc3 {[%clk 0:01:53]} 37. Rxa5 {[%clk 0:00:02]}  Rxc2 {[%clk 0:01:50]} 38. Ke3 {[%clk 0:00:02]}  Rxc4 {[%clk 0:01:50]} 39. Ra6+ {[%clk 0:00:03]}  Kd5 {[%clk 0:01:48]} 40. Kd3 {[%clk 0:00:02]}  Rb4 {[%clk 0:01:46]} 41. Ra7 {[%clk 0:00:02]}  Rb3+ {[%clk 0:01:46]} 42. Kc2 {[%clk 0:00:02]}  Ra3 {[%clk 0:01:47]} 43. a5 {[%clk 0:00:02]}  c6 {[%clk 0:01:46]} 44. a6 {[%clk 0:00:02]}  Kc4 {[%clk 0:01:46]} 45. Ra8 {[%clk 0:00:02]}  Ra2+ {[%clk 0:01:46]} 46. Kb1 {[%clk 0:00:02]}  Ra5 {[%clk 0:01:45]} 47. Kc2 {[%clk 0:00:03]}  Kb5 {[%clk 0:01:42]} 48. a7 {[%clk 0:00:02]}  Kb6 {[%clk 0:01:42]} 49. Rb8+ {[%clk 0:00:02]}  Kxa7 {[%clk 0:01:42]} 50. Rb3 {[%clk 0:00:02]}  Rb5 {[%clk 0:01:43]} 51. Ra3+ {[%clk 0:00:02]}  Kb6 {[%clk 0:01:43]} 52. Kc3 {[%clk 0:00:03]}  Kc7 {[%clk 0:01:41]} 53. Ra1 {[%clk 0:00:02]}  Rb4 {[%clk 0:01:39]} 54. Rd1 {[%clk 0:00:02]}  Rg4 {[%clk 0:01:38]} 55. Re1 {[%clk 0:00:01]}  Kb6 {[%clk 0:01:38]} 56. Rb1+ {[%clk 0:00:01]}  Kc7 {[%clk 0:01:38]} 57. Rd1 {[%clk 0:00:01]}  c4 {[%clk 0:01:38]} 58. Rd2 {[%clk 0:00:01]}  Kb6 {[%clk 0:01:38]} 59. Rb2+ {[%clk 0:00:02]}  Kc5 {[%clk 0:01:39]} 60. Ra2 {[%clk 0:00:02]}  Rg3+ {[%clk 0:01:38]} 61. Kb2 {[%clk 0:00:03]}  Rg2+ {[%clk 0:01:39]} 62. Kb1 {[%clk 0:00:04]}  Rxa2 {[%clk 0:01:39]} 63. Kxa2 {[%clk 0:00:04]}  Kd4 {[%clk 0:01:39]} 64. Kb2 {[%clk 0:00:05]}  Kd3 {[%clk 0:01:40]} 65. Kc1 {[%clk 0:00:03]}  c3 {[%clk 0:01:39]} 66. Kd1 {[%clk 0:00:03]}  c2+ {[%clk 0:01:38]} 67. Kc1 {[%clk 0:00:01]}  c5 {[%clk 0:01:39]} 0-1


[Site "https://www.chess.com"]

[Event "Titled Tuesday Blitz August 22 Early 2023"]
[White "Golubev, Mikhail"]
[Black "Kupervaser, Erez"]
[WhiteFideId "14100983"]
[BlackFideId "2814587"]
[WhiteElo "2582"]
[BlackElo "2411"]
[Result "0-1"]
[Round "6"]
[TimeControl "180+1"]
[Date "2023.08.22"]
[WhiteClock "0:00:00"]
[BlackClock "0:01:09"]
[Board "96"]

1. e4 {[%clk 0:03:00]}  c5 {[%clk 0:03:00]} 2. Nf3 {[%clk 0:03:00]}  d6 {[%clk 0:03:00]} 3. d4 {[%clk 0:02:58]}  cxd4 {[%clk 0:03:00]} 4. Nxd4 {[%clk 0:02:59]}  Nf6 {[%clk 0:03:01]} 5. Nc3 {[%clk 0:02:59]}  g6 {[%clk 0:03:01]} 6. Be3 {[%clk 0:02:58]}  Bg7 {[%clk 0:03:00]} 7. f3 {[%clk 0:02:58]}  Nc6 {[%clk 0:03:00]} 8. Qd2 {[%clk 0:02:57]}  h5 {[%clk 0:03:00]} 9. Bc4 {[%clk 0:02:41]}  Bd7 {[%clk 0:02:58]} 10. Bb3 {[%clk 0:02:36]}  Na5 {[%clk 0:02:56]} 11. O-O-O {[%clk 0:02:31]}  Rb8 {[%clk 0:02:54]} 12. Rhe1 {[%clk 0:02:15]}  b5 {[%clk 0:02:53]} 13. Nd5 {[%clk 0:01:48]}  Nc4 {[%clk 0:02:45]} 14. Bxc4 {[%clk 0:01:38]}  bxc4 {[%clk 0:02:46]} 15. Bg5 {[%clk 0:01:23]}  Nxd5 {[%clk 0:02:37]} 16. exd5 {[%clk 0:01:18]}  O-O {[%clk 0:02:38]} 17. Bxe7 {[%clk 0:00:36]}  Qb6 {[%clk 0:02:33]} 18. Qc3 {[%clk 0:00:20]}  Rfe8 {[%clk 0:02:15]} 19. Bh4 {[%clk 0:00:19]}  Rec8 {[%clk 0:02:08]} 20. Bf2 {[%clk 0:00:18]}  Rc5 {[%clk 0:02:03]} 21. Re7 {[%clk 0:00:17]}  Qb7 {[%clk 0:01:47]} 22. g4 {[%clk 0:00:10]}  hxg4 {[%clk 0:01:42]} 23. fxg4 {[%clk 0:00:09]}  Bf6 {[%clk 0:01:42]} 24. Re4 {[%clk 0:00:06]}  Qxd5 {[%clk 0:01:35]} 25. Qf3 {[%clk 0:00:05]}  Be5 {[%clk 0:01:32]} 26. Bg3 {[%clk 0:00:04]}  Qb7 {[%clk 0:01:24]} 27. Qc3 {[%clk 0:00:00]}  Qxe4 {[%clk 0:01:09]} 0-1


[Site "https://www.chess.com"]

[Event "Titled Tuesday Blitz August 22 Early 2023"]
[White "Young_Catalan_Player09"]
[Black "Eynullayev, Altay"]
[BlackFideId "13413562"]
[WhiteElo "2395"]
[BlackElo "2576"]
[Result "1-0"]
[Round "6"]
[TimeControl "180+1"]
[Date "2023.08.22"]
[WhiteClock "0:01:04"]
[BlackClock "0:00:02"]
[Board "97"]

1. Nf3 {[%clk 0:03:00]}  Nf6 {[%clk 0:03:00]} 2. g3 {[%clk 0:02:59]}  e6 {[%clk 0:03:00]} 3. Bg2 {[%clk 0:02:59]}  d5 {[%clk 0:03:01]} 4. O-O {[%clk 0:03:00]}  Be7 {[%clk 0:03:02]} 5. c4 {[%clk 0:02:58]}  O-O {[%clk 0:03:03]} 6. d4 {[%clk 0:02:58]}  dxc4 {[%clk 0:03:03]} 7. Na3 {[%clk 0:02:57]}  Bxa3 {[%clk 0:02:54]} 8. bxa3 {[%clk 0:02:58]}  Nbd7 {[%clk 0:02:53]} 9. a4 {[%clk 0:02:56]}  a5 {[%clk 0:02:52]} 10. Ba3 {[%clk 0:02:54]}  Re8 {[%clk 0:02:52]} 11. Qc2 {[%clk 0:02:54]}  Nb6 {[%clk 0:02:51]} 12. Bc5 {[%clk 0:02:44]}  Nfd5 {[%clk 0:02:44]} 13. e4 {[%clk 0:02:42]}  Nb4 {[%clk 0:02:44]} 14. Qd2 {[%clk 0:02:34]}  Nxa4 {[%clk 0:02:41]} 15. Bxb4 {[%clk 0:02:33]}  axb4 {[%clk 0:02:40]} 16. Qxb4 {[%clk 0:02:34]}  Nb6 {[%clk 0:02:39]} 17. a4 {[%clk 0:02:33]}  Qe7 {[%clk 0:01:15]} 18. Qxe7 {[%clk 0:02:22]}  Rxe7 {[%clk 0:01:16]} 19. a5 {[%clk 0:02:23]}  Nd7 {[%clk 0:01:16]} 20. Rfc1 {[%clk 0:02:22]}  b5 {[%clk 0:00:46]} 21. axb6 {[%clk 0:02:02]}  Rxa1 {[%clk 0:00:47]} 22. Rxa1 {[%clk 0:02:02]}  Nxb6 {[%clk 0:00:47]} 23. Ne5 {[%clk 0:02:00]}  f6 {[%clk 0:00:43]} 24. Nc6 {[%clk 0:01:57]}  Rd7 {[%clk 0:00:33]} 25. Bh3 {[%clk 0:01:57]}  Kf7 {[%clk 0:00:27]} 26. d5 {[%clk 0:01:49]}  Rd6 {[%clk 0:00:23]} 27. Ra7 {[%clk 0:01:41]}  exd5 {[%clk 0:00:13]} 28. Rxc7+ {[%clk 0:01:36]}  Bd7 {[%clk 0:00:14]} 29. exd5 {[%clk 0:01:32]}  Rxd5 {[%clk 0:00:08]} 30. Nb8 {[%clk 0:01:28]}  Ke7 {[%clk 0:00:07]} 31. Nxd7 {[%clk 0:01:24]}  Nxd7 {[%clk 0:00:07]} 32. Rxc4 {[%clk 0:01:24]}  Ne5 {[%clk 0:00:07]} 33. Rc3 {[%clk 0:01:23]}  Kf7 {[%clk 0:00:06]} 34. Kg2 {[%clk 0:01:22]}  g5 {[%clk 0:00:05]} 35. Bf5 {[%clk 0:01:21]}  Nd7 {[%clk 0:00:04]} 36. Bxh7 {[%clk 0:01:15]}  f5 {[%clk 0:00:02]} 37. Rc7 {[%clk 0:01:15]}  Ke7 {[%clk 0:00:01]} 38. h4 {[%clk 0:01:12]}  Kd6 {[%clk 0:00:01]} 39. Ra7 {[%clk 0:01:07]}  gxh4 {[%clk 0:00:02]} 40. gxh4 {[%clk 0:01:07]}  Nf6 {[%clk 0:00:03]} 41. Bg6 {[%clk 0:01:05]}  f4 {[%clk 0:00:02]} 42. h5 {[%clk 0:01:05]}  Nxh5 {[%clk 0:00:02]} 43. Ra6+ {[%clk 0:01:02]}  Kc5 {[%clk 0:00:02]} 44. Ra5+ {[%clk 0:01:01]}  Kd6 {[%clk 0:00:02]} 45. Rxd5+ {[%clk 0:01:01]}  Kxd5 {[%clk 0:00:02]} 46. Bxh5 {[%clk 0:01:02]}  Ke5 {[%clk 0:00:02]} 47. Kf3 {[%clk 0:01:03]}  Kf5 {[%clk 0:00:03]} 48. Bg4+ {[%clk 0:01:03]}  Kg5 {[%clk 0:00:04]} 49. Bh3 {[%clk 0:01:04]}  Kh4 {[%clk 0:00:02]} 50. Bc8 {[%clk 0:01:04]} 1-0


[Site "https://www.chess.com"]

[Event "Titled Tuesday Blitz August 22 Early 2023"]
[White "Wang2007"]
[Black "Chyzy, Jakub"]
[BlackFideId "21806209"]
[WhiteElo "2392"]
[BlackElo "2572"]
[Result "0-1"]
[Round "6"]
[TimeControl "180+1"]
[Date "2023.08.22"]
[WhiteClock "0:00:00"]
[BlackClock "0:00:01"]
[Board "98"]

1. d4 {[%clk 0:03:00]}  Nf6 {[%clk 0:03:00]} 2. c4 {[%clk 0:03:00]}  d6 {[%clk 0:02:57]} 3. Nf3 {[%clk 0:03:00]}  Nbd7 {[%clk 0:02:57]} 4. g3 {[%clk 0:03:01]}  e5 {[%clk 0:02:56]} 5. Bg2 {[%clk 0:03:01]}  Be7 {[%clk 0:02:55]} 6. O-O {[%clk 0:03:01]}  O-O {[%clk 0:02:55]} 7. Nc3 {[%clk 0:03:02]}  c6 {[%clk 0:02:54]} 8. e4 {[%clk 0:03:02]}  a6 {[%clk 0:02:54]} 9. a4 {[%clk 0:02:58]}  a5 {[%clk 0:02:53]} 10. h3 {[%clk 0:02:56]}  exd4 {[%clk 0:02:51]} 11. Nxd4 {[%clk 0:02:57]}  Nc5 {[%clk 0:02:51]} 12. Be3 {[%clk 0:02:54]}  Re8 {[%clk 0:02:51]} 13. Qc2 {[%clk 0:02:53]}  Bf8 {[%clk 0:02:50]} 14. Rad1 {[%clk 0:02:51]}  Na6 {[%clk 0:02:38]} 15. Rfe1 {[%clk 0:02:47]}  Nd7 {[%clk 0:02:35]} 16. f4 {[%clk 0:02:42]}  Ndc5 {[%clk 0:02:34]} 17. Bf2 {[%clk 0:02:39]}  Nb4 {[%clk 0:02:28]} 18. Qb1 {[%clk 0:02:38]}  Qc7 {[%clk 0:02:20]} 19. Kh1 {[%clk 0:02:11]}  g6 {[%clk 0:02:15]} 20. Nf3 {[%clk 0:01:52]}  Bg7 {[%clk 0:01:40]} 21. g4 {[%clk 0:01:52]}  Nb3 {[%clk 0:01:32]} 22. Nd4 {[%clk 0:01:45]}  Nc5 {[%clk 0:01:22]} 23. b3 {[%clk 0:01:41]}  Ne6 {[%clk 0:01:16]} 24. f5 {[%clk 0:01:17]}  Nf4 {[%clk 0:00:51]} 25. Bg3 {[%clk 0:01:06]}  Nxg2 {[%clk 0:00:42]} 26. Kxg2 {[%clk 0:01:06]}  Qb6 {[%clk 0:00:37]} 27. Bf2 {[%clk 0:01:05]}  Qd8 {[%clk 0:00:26]} 28. Nce2 {[%clk 0:00:55]}  Be5 {[%clk 0:00:20]} 29. Ng3 {[%clk 0:00:54]}  Qg5 {[%clk 0:00:17]} 30. Nf3 {[%clk 0:00:54]}  Qe7 {[%clk 0:00:04]} 31. Nxe5 {[%clk 0:00:48]}  dxe5 {[%clk 0:00:05]} 32. Qc1 {[%clk 0:00:41]}  Bd7 {[%clk 0:00:05]} 33. Qh6 {[%clk 0:00:39]}  Rad8 {[%clk 0:00:05]} 34. g5 {[%clk 0:00:39]}  Qf8 {[%clk 0:00:05]} 35. Qh4 {[%clk 0:00:36]}  Bc8 {[%clk 0:00:05]} 36. f6 {[%clk 0:00:30]}  Kh8 {[%clk 0:00:03]} 37. Ne2 {[%clk 0:00:19]}  Nd3 {[%clk 0:00:03]} 38. Rf1 {[%clk 0:00:18]}  Nb2 {[%clk 0:00:03]} 39. Rxd8 {[%clk 0:00:08]}  Rxd8 {[%clk 0:00:03]} 40. Be3 {[%clk 0:00:08]}  Rd3 {[%clk 0:00:04]} 41. Qf2 {[%clk 0:00:07]}  Rxb3 {[%clk 0:00:03]} 42. Nc1 {[%clk 0:00:06]}  Rc3 {[%clk 0:00:02]} 43. Bc5 {[%clk 0:00:03]}  Nd3 {[%clk 0:00:02]} 44. Nxd3 {[%clk 0:00:03]}  Qd8 {[%clk 0:00:02]} 45. Nxe5 {[%clk 0:00:02]}  Qe8 {[%clk 0:00:01]} 46. Ng4 {[%clk 0:00:00]}  Qxe4+ {[%clk 0:00:01]} 0-1


[Site "https://www.chess.com"]